Cogmind - Beta 16 @@@ ROGUE MODE // 2025.11.09 @ 21:28:11 Player: ChromeKnight Result: Escaped! Performance ------------- Evolutions (9) 4500 Regions Visited (20) 4000 Robots Destroyed (284) 1420 Value Destroyed (13929) 13929 Prototype IDs (49) 980 Alien Tech Used (0) 0 Bonus (10820) 10820 TOTAL SCORE: 35649 Bonus ------- High Alert Combat Kills 1866 Follower Combat Kills 1541 Network Hubs Disabled 400 Met Warlord at Base 500 MAIN.C Attacked Warlord 500 Built Enhanced Grunts 300 A7 Reached Mainframe 300 Met R17 at Cetus 500 Met R17 at Research 2000 Win 3000 Friendly Fire -87 Cogmind --------- Core Integrity 1200/1600 Matter 138/300 Energy 222/233 System Corruption 13% Temperature Cool (7) Movement Walking (177) Ox1 Location To Epsilon Eridani Parts ------- > --- POWER (2) -------- Multi-Quantum Reactor > --- PROPULSION (6) --- Biometal Exoskeleton > --- UTILITY (13) ----- Armored Scrap Engine Advanced Heat Sink Experimental Coolant Injector Large Storage Unit Advanced Sensor Array Advanced Signal Interpreter Improved Targeting Computer Experimental Core Analyzer Improved Transmission Jammer Centrium Medium Armor Plating Graphene Brace Improved Hacking Suite > --- WEAPON (4) ------- Cycling Thermal Mass Construct/C Vortex Lance > --- INVENTORY (15) --- Experimental Energy Well (57) Compact Matter Pod (150) Improved Weapon Cycler Centrium Medium Armor Plating Experimental Thermal Shield Advanced Shield Generator Advanced Shield Generator Advanced Shield Generator Improved Point Defense System Fusion Bomb Launcher Advanced Datajack Advanced Datajack Peak State ------------ > --- POWER ------------ Multi-Quantum Reactor > --- PROPULSION ------- Biometal Exoskeleton > --- UTILITY ---------- Armored Scrap Engine Advanced Heat Sink Experimental Coolant Injector Large Storage Unit Advanced Sensor Array Advanced Signal Interpreter Advanced Target Analyzer Experimental Core Analyzer Improved Transmission Jammer Centrium Medium Armor Plating Graphene Brace System Mapper > --- WEAPON ----------- Compact HERF Cannon Cycling Thermal Mass Construct/C > --- INVENTORY -------- Experimental Energy Well Advanced Particle Charger Improved Weapon Cycler Improved Weapon Cycler Centrium Medium Armor Plating Centrium Medium Armor Plating Centrium Medium Armor Plating Centrium Medium Armor Plating Experimental Thermal Shield Advanced Shield Generator Advanced Shield Generator Advanced Shield Generator Fusion Bomb Launcher Advanced Datajack Vortex Lance [Rating: 197] Favorites ----------- Power Constructs Engine Improved Ion Engine Power Core Light Nuclear Core Reactor Constructs Propulsion Light Treads Treads Light Treads Leg Constructs Wheel Armored Huge Wheel Hover Unit Cooled Gravmag System Utility Huge Storage Unit Device Armored Scrap Engine Storage Huge Storage Unit Processor Experimental Core Analyzer Hackware System Mapper Protection Centrium Medium Armor Plating Weapon Constructs Energy Gun Spread Laser Energy Cannon Compact HERF Cannon Ballistic Gun Enhanced Autogun Ballistic Cannon Constructs Launcher Rocket Launcher Piercing Weapon Vortex Lance Build | -11 -10 -10 -8 -7 -7 -7 -5 -5 -5 -5 -4 -4 -4 -4 -4 -4 -3 -3 -2 -1 ------- Run | Yrd Mat Sub Mat Fac Sto Rec Fac Upp Upp War Pro Fac Ext Cet Arc Hub Res Tes Res Acc Slots Evolved 18 | . . . 4 2 . . 4 . . . . 2 . . . . 2 . 2 2 Power 1 | . . . . . . . 1 . . . . . . . . . . . . . Propulsion 4 | . . . 2 . . . 1 . . . . . . . . . . . . 1 Utility 11 | . . . 2 1 . . 2 . . . . 2 . . . . 2 . 1 1 Weapon 2 | . . . . 1 . . . . . . . . . . . . . . 1 . Parts Attached 148 | 6 5 10 33 12 12 5 11 4 . 5 . 6 6 1 . 2 2 6 9 13 Power 13 | 1 1 2 1 4 1 . 1 1 . . . . . . . . . . . 1 Engine 8 | 1 1 1 1 1 1 . 1 1 . . . . . . . . . . . . Core 4 | . . 1 . 3 . . . . . . . . . . . . . . . . Reactor 1 | . . . . . . . . . . . . . . . . . . . . 1 Propulsion 21 | 2 . 2 9 2 4 . 2 . . . . . . . . . . . . . Treads 17 | 2 . 2 9 1 3 . . . . . . . . . . . . . . . Leg . | . . . . . . . . . . . . . . . . . . . . . Wheel 1 | . . . . 1 . . . . . . . . . . . . . . . . Hover 3 | . . . . . 1 . 2 . . . . . . . . . . . . . Flight . | . . . . . . . . . . . . . . . . . . . . . Utility 73 | 1 2 1 11 5 2 4 5 3 . 4 . 6 5 1 . 1 1 3 6 12 Device 32 | . . 1 6 2 1 2 2 3 . 2 . 3 2 . . 1 . . 2 5 Storage 10 | 1 1 . . 1 . 2 . . . . . . 1 . . . . 3 1 . Processor 7 | . 1 . . . . . 1 . . 1 . . . . . . . . 2 2 Hackware 4 | . . . . . . . 1 . . . . 1 . . . . . . . 2 Protection 20 | . . . 5 2 1 . 1 . . 1 . 2 2 1 . . 1 . 1 3 Artifact . | . . . . . . . . . . . . . . . . . . . . . Weapon 41 | 2 2 5 12 1 5 1 3 . . 1 . . 1 . . 1 1 3 3 . Energy Gun 10 | 2 . . 7 . . . . . . . . . . . . . . 1 . . Energy Cannon 6 | . . 1 1 . . . . . . . . . . . . . 1 1 2 . Ballistic Gun 16 | . 2 2 4 1 4 1 2 . . . . . . . . . . . . . Ballistic Cannon 1 | . . . . . . . . . . . . . . . . . . 1 . . Launcher 6 | . . 2 . . 1 . . . . . . . 1 . . 1 . . 1 . Special Weapon . | . . . . . . . . . . . . . . . . . . . . . Impact Weapon . | . . . . . . . . . . . . . . . . . . . . . Slashing Weapon . | . . . . . . . . . . . . . . . . . . . . . Piercing Weapon 2 | . . . . . . . 1 . . 1 . . . . . . . . . . Special Melee Weapon . | . . . . . . . . . . . . . . . . . . . . . Unidentified Prototypes 24 | . 1 . 3 . 1 2 3 . . 4 . 1 . 1 . 2 1 5 . . Corrupted Parts 1 | . . . . . . . . . . . . . . . . . . . . 1 System Corruption 1 | . . . . . . . . . . . . . . . . . . . . 1 Parts Lost 29 | . . 4 6 3 . . . 1 . . 1 . 1 . . . . . 2 11 Power 3 | . . 1 . 1 . . . . . . . . . . . . . . . 1 Propulsion 4 | . . 2 1 1 . . . . . . . . . . . . . . . . Utility 14 | . . . 2 . . . . 1 . . 1 . . . . . . . 2 8 Weapon 8 | . . 1 3 1 . . . . . . . . 1 . . . . . . 2 Highest Loss Streak 3 | . . 3 2 1 . . . 1 . . 1 . 1 . . . . . 1 3 To Critical Strikes 1 | . . . . 1 . . . . . . . . . . . . . . . . Average Backups 17 | . 16 24 23 23 23 14 9 9 9 9 9 9 10 13 13 14 14 14 14 13 Power . | . . . . . 1 . . . . . . . . . . . . . . . Propulsion 1 | . . 1 3 4 5 1 . . . . . . . . . . . . . . Utility 9 | . 5 5 9 10 9 10 9 8 8 8 8 8 9 11 11 12 11 11 10 10 Weapon 6 | . 9 17 9 8 7 2 . 1 1 1 1 1 1 2 2 2 2 2 2 1 Tool/Special . | . . . . . . . . . . . . . . . . . . . . . Unused Backups 69 | . 2 3 17 10 5 8 5 1 . 1 . 1 . 2 . . 1 2 2 9 Power 3 | . . . . 1 . 2 . . . . . . . . . . . . . . Propulsion 11 | . . . 8 . . 3 . . . . . . . . . . . . . . Utility 30 | . 1 1 2 5 2 . 5 1 . 1 . 1 . 2 . . . 2 1 6 Weapon 23 | . 1 2 7 4 3 3 . . . . . . . . . . 1 . 1 1 Tool/Special 2 | . . . . . . . . . . . . . . . . . . . . 2 Average Slot Usage (%) 76 | . 98 99 93 86 90 58 56 52 52 53 58 62 62 63 63 62 65 65 64 60 Engine 3 | . 14 3 6 3 4 . 6 3 . . . . . . . . . . . . Core 3 | . . 10 2 3 2 5 2 2 5 5 5 5 5 4 . . . . . . Treads 13 | . 28 27 33 20 27 5 . . . . . . . . . . . . 1 . Leg 1 | . . . . . . 2 1 . . . . . . . . 2 4 . 2 3 Device 15 | . . 11 14 14 13 21 11 10 11 13 17 20 20 21 21 20 23 22 19 24 Storage 7 | . 14 14 9 7 7 7 5 5 5 5 5 5 5 5 5 5 4 4 4 4 Processor 4 | . 12 2 . . . . 4 5 5 5 5 5 5 5 5 5 4 4 9 10 Hackware 1 | . . . . . . . . . . . . 4 5 5 5 5 4 4 4 1 Protection 4 | . . . 8 9 8 . 4 5 5 4 5 5 5 5 5 5 8 9 8 4 Energy Gun 1 | . 1 . 8 . . . . . . . . . . . . . . . . . Energy Cannon 1 | . . 7 . . . 1 1 . . . 2 1 . . 2 . . 3 3 3 Ballistic Gun 9 | . 26 16 9 20 22 7 . . . . . . . . . . . . . . Ballistic Cannon 1 | . . . . . . . 3 5 5 5 2 3 5 5 2 5 4 3 3 2 Peak Build Rating 197 | 6 17 17 40 54 54 63 92 92 93 111 133 150 142 140 142 159 169 173 189 197 Average Rating 77 | 4 14 15 33 50 50 53 81 89 92 99 121 147 126 137 141 152 167 167 178 180 On Entrance 94 | . 6 16 16 39 50 51 61 85 92 93 111 133 142 132 140 142 159 165 171 189 Avg Prop Armor Cover (%) 8 | . . . . 8 8 . 1 . . . . . . . . . . . . . Naked Turns . | . . . . . . . . . . . . . . . . . . . . . Heaviest Build 135 | 11 91 97 111 132 135 123 108 57 56 57 47 70 83 79 78 78 101 113 128 120 Greatest Support 194 | 40 40 40 85 85 82 80 101 99 99 99 111 111 111 111 111 155 155 155 194 149 Greatest Overweight (x) 4 | . 2 2 2 4 4 2 1 . . . . . . . . . . . . 1 Average Overweight (x) . | . 1 2 1 3 1 1 . . . . . . . . . . . . . . Largest Inventory Capacity 25 | 8 25 25 25 25 25 25 25 10 10 10 10 10 15 15 15 15 15 15 15 15 Average Capacity 20 | 7 23 25 25 25 25 24 10 10 10 10 10 10 11 15 15 15 15 15 15 15 Most Carried 25 | . 25 25 25 25 25 25 15 10 10 10 10 10 14 15 13 15 15 15 15 15 Average Carried 17 | . 16 24 23 24 24 15 9 9 9 9 9 9 10 13 13 14 14 14 14 13 Final Capacity 25 | 8 25 25 25 25 25 25 10 10 10 10 10 10 15 15 15 15 15 15 15 15 Final Carried 25 | . 25 25 23 24 25 15 10 9 10 10 10 10 14 13 13 15 15 15 15 12 Scrap Engine Consumption 212 | . . . . . . 34 24 3 2 9 4 13 4 14 3 4 14 14 36 34 Constructs Created 3 | . . . . . . 3 . . . . . . . . . . . . . . Constructs Modified 98 | . . . . . . 10 11 4 . . 6 6 2 4 3 3 3 6 20 20 Class Distribution -------------------- 33% | Mutant 17% | Construct 17% | Hacker-Construct 12% | Commander-Construct 7% | Scavenger-Mutant 5% | Gunner 4% | Tank Dominant Class ---------------- Mutant | -10/Materials Mutant | -10/Subcaves Mutant | -8/Materials Gunner | -7/Factory Tank | -7/Storage Commander-Construct | -7/Recycling Construct | -5/Factory Construct | -5/Upper Caves Construct | -5/Upper Caves Construct | -5/Warlord Construct | -4/Proximity Caves Hacker-Construct | -4/Factory Commander-Construct | -4/Extension Commander-Construct | -4/Cetus Commander-Construct | -4/Archives Commander-Construct | -4/Hub_04(d) Hacker-Construct | -3/Research Hacker-Construct | -3/Testing Hacker-Construct | -2/Research Construct | -1/Access Resources | -11 -10 -10 -8 -7 -7 -7 -5 -5 -5 -5 -4 -4 -4 -4 -4 -4 -3 -3 -2 -1 ----------- Run | Yrd Mat Sub Mat Fac Sto Rec Fac Upp Upp War Pro Fac Ext Cet Arc Hub Res Tes Res Acc Matter Collected 9411 | 259 327 332 630 546 913 331 513 170 108 . 156 148 373 110 20 159 331 389 1130 2466 Remotely . | . . . . . . . . . . . . . . . . . . . . . Salvage Created 13763 | . 623 415 1443 546 835 17 1167 214 270 . 222 962 891 386 160 148 240 744 1343 3137 Parts 669 | . 48 30 78 29 36 . 51 14 16 . 15 49 37 16 6 6 5 43 57 133 Haulers Intercepted 11 | . 1 . 6 . 1 . . . . . . . 1 . . 1 1 . . . Recyclers Shooed 8 | . . . 4 1 . . 1 . . . . . . . . . . . . 2 Parts Field Recycled . | . . . . . . . . . . . . . . . . . . . . . Retrieved Matter . | . . . . . . . . . . . . . . . . . . . . . Parts Self-Destructed 38 | . . 5 . . . . . 11 12 . 10 . . . . . . . . . Prevented . | . . . . . . . . . . . . . . . . . . . . . Parts Restored . | . . . . . . . . . . . . . . . . . . . . . Kills | -11 -10 -10 -8 -7 -7 -7 -5 -5 -5 -5 -4 -4 -4 -4 -4 -4 -3 -3 -2 -1 ------- Run | Yrd Mat Sub Mat Fac Sto Rec Fac Upp Upp War Pro Fac Ext Cet Arc Hub Res Tes Res Acc Combat Hostiles Destroyed 223 | . 11 10 22 12 13 1 30 5 4 . 3 16 11 5 2 1 2 12 29 34 Melee 3 | . . . . . . . . . . . . 3 . . . . . . . . Guns 54 | . 11 6 15 12 10 . . . . . . . . . . . . . . . Cannons 109 | . . 2 . . . 1 16 3 4 . 3 11 7 5 2 1 2 12 10 30 AOE 47 | . . 2 7 . 3 . 13 2 . . . 1 4 . . . . . 15 . Classes Destroyed 22 | . 8 2 3 1 1 . . 2 1 . . . . . . . . . 3 1 Worker 9 | . 2 . . . 3 . 1 . . . . 1 2 . . . . . . . Builder 5 | . 1 . 1 . . . . . . . . . . . . . . 1 . 2 Tunneler 1 | . . . 1 . . . . . . . . . . . . . . . . . Hauler 11 | . 1 . 6 . 1 . . . . . . . 1 . . 1 1 . . . Recycler 16 | . 1 . 4 1 1 . 1 . . . . 2 1 . . . . . . 5 Minesweeper 1 | . . . . . . . . 1 . . . . . . . . . . . . Operator 5 | . 1 . 1 . 1 . . . . . . . . . . . . . . 2 Watcher 11 | . 2 . 4 . 1 . . . . . . 1 . 2 . . 1 . . . Swarmer 51 | . 3 . 6 3 . . 11 3 . . . 9 4 . . . . . 11 1 Grunt 66 | . 8 . 10 6 6 . 12 1 . . . . 1 . . . . 3 7 12 Brawler 2 | . . . . . . . . . . . . . . . . . . . . 2 Duelist 6 | . . . . . 1 . 3 . . . . . 1 . . . . . . 1 Sentry 26 | . . . 5 . 5 . 1 . 1 . 1 3 4 . 2 1 . 3 . . Demolisher 2 | . . . . . . . . . . . . . . . . . . . 2 . Hunter 18 | . . . 1 . . . 2 . . . . 2 . . . . 2 . 3 8 Programmer 28 | . . . . 3 1 . 2 . 2 . 1 2 1 . . . . 6 . 10 Behemoth 2 | . . . . . . . . . 1 . 1 . . . . . . . . . Cetus Guard 5 | . . . . . . . . . . . . . . 5 . . . . . . Striker 4 | . . . . . . . . . . . . . . . . . . . 4 . Executioner 2 | . . . . . . . . . . . . . . . . . . . 2 . Artisan 1 | . . 1 . . . . . . . . . . . . . . . . . . Subdweller 11 | . . 10 . . . 1 . . . . . . . . . . . . . . Butcher 1 | . . . . . . . . . . . . . 1 . . . . . . . Mutant 1 | . . . . . . . . 1 . . . . . . . . . . . . Best Kill Streak 15 | . 8 2 4 4 8 1 15 3 3 . 2 9 4 4 2 1 2 5 10 6 Combat Bots Only 15 | . 3 2 3 4 5 1 15 3 3 . 2 7 4 3 2 1 2 4 10 5 Max Kills in Single Turn 5 | . 1 1 3 1 2 1 3 2 1 . 1 2 2 1 1 1 1 2 5 1 Gunslinging . | . . . . . . . . . . . . . . . . . . . . . Exploded 5 | . . 1 3 . 2 . 3 2 . . . 1 2 . . . . . 5 . Melee 1 | . . . . . . . . . . . . 1 . . . . . . . . Uniques/NPCs Destroyed 1 | . . . . . . 1 . . . . . . . . . . . . . . 01-MTF (-7/Recycling) Combat | -11 -10 -10 -8 -7 -7 -7 -5 -5 -5 -5 -4 -4 -4 -4 -4 -4 -3 -3 -2 -1 -------- Run | Yrd Mat Sub Mat Fac Sto Rec Fac Upp Upp War Pro Fac Ext Cet Arc Hub Res Tes Res Acc Hostile Shots Fired 1606 | . 39 51 141 48 186 43 162 16 29 . 25 76 50 17 10 20 . 81 194 418 Missed 596 | . 13 12 46 11 72 9 68 4 13 . 16 49 19 8 4 9 . 36 70 137 Hits 1010 | . 26 39 95 37 114 34 94 12 16 . 9 27 31 9 6 11 . 45 124 281 Melee 10 | . . . . . 4 . . . . . . . . . . . . . 4 2 Projectile 1000 | . 26 39 95 37 110 34 94 12 16 . 9 27 31 9 6 11 . 45 120 279 AOE 7 | . . . . . . . . . . . . . . . . . . . 7 . Critical Strikes 46 | . . 3 5 1 2 4 1 . 1 . 1 . 1 3 . . . 1 7 16 Actively Blocked 20 | . . . . . . . . . . . . . . . . . . . 4 16 Damage Taken 18266 | . 307 838 1386 837 1255 428 1523 131 180 . 252 488 518 194 121 189 63 768 2975 5813 Core 1651 | . 72 160 99 188 177 37 123 . . . . 15 30 41 20 7 . 32 250 400 Absorbed by Shields 1469 | . . . . . . 213 164 . . . . . 164 70 42 71 23 279 73 370 Ignored by Resistances 702 | . . . . . 8 . . . . . . . . . . . 18 28 648 . Regen/Repaired (Parts) 6967 | . . . 134 . . 94 1061 71 26 66 410 250 173 59 . 209 308 186 1734 2186 Core Remaining (%) 73 | 100 . 7 82 . . 42 . . . . 87 . . . . 90 . 97 82 75 Volleys Fired 781 | . 48 49 112 39 56 17 54 7 18 1 15 27 49 20 10 17 6 35 79 122 Largest 3 | . 2 2 2 3 3 1 2 2 1 1 1 1 2 1 1 1 1 2 2 2 Hottest 274 | . 50 103 130 75 83 60 101 111 78 78 78 115 154 115 66 53 53 274 184 229 Shots Fired 1137 | . 95 81 212 107 158 17 56 8 17 1 15 27 50 20 10 17 6 38 81 121 Gun 632 | . 95 62 202 107 152 14 . . . . . . . . . . . . . . Cannon 462 | . . 17 . . . 2 46 7 17 1 15 27 45 20 10 17 6 38 73 121 Launcher 43 | . . 2 10 . 6 1 10 1 . . . . 5 . . . . . 8 . Special . | . . . . . . . . . . . . . . . . . . . . . Kinetic 776 | . 94 62 63 107 152 1 33 7 17 1 10 25 45 20 . 17 6 29 45 42 Thermal 159 | . 1 17 59 . . 2 13 . . . . . . . 10 . . . 2 55 Explosive 43 | . . 2 10 . 6 1 10 1 . . . . 5 . . . . . 8 . Electromagnetic 152 | . . . 80 . . 13 . . . . . . . . . . . 9 26 24 Entropic 7 | . . . . . . . . . . . 5 2 . . . . . . . . Robot Hit Streak 23 | . 9 19 23 9 8 4 15 9 15 . 17 8 7 7 4 5 5 14 7 7 Robot Miss Streak 16 | . 6 2 16 8 10 5 7 2 5 . 3 5 5 2 3 3 3 4 12 4 Penetration Max 1 | . . . . . . . . . . . . 1 1 1 . . . 1 1 . Secondary Targets 10 | . 2 1 2 3 2 . . . . . . . . . . . . . . . Max Gunslinging Chain 1 | . 1 1 1 1 1 . . . . . . . . . . . . . . . Shots Hit Robots 766 | . 60 60 131 56 99 13 44 8 15 . 14 25 40 16 9 15 6 29 56 70 Core Hits 598 | . 27 18 106 24 43 8 101 13 16 . 10 22 35 15 4 6 6 59 44 41 Critical Kills 10 | . . 2 . . . . . . . . 1 3 2 2 . . . . . . Critical Parts Destroyed 15 | . . . 1 1 . . . . . . . 4 4 2 1 1 . 1 . . Critical Strikes 31 | . . 3 1 1 . . . . . . 1 7 6 4 1 1 1 1 4 . Destroy 26 | . . 3 1 1 . . . . . . 1 7 6 4 1 1 . 1 . . Blast 4 | . . . . . . . . . . . . . . . . . . . 4 . Sunder 1 | . . . . . . . . . . . . . . . . . 1 . . . Melee Attacks 29 | . . . . . . . 6 2 . 1 . 12 . 1 . . 2 2 . 3 Impact . | . . . . . . . . . . . . . . . . . . . . . Slashing . | . . . . . . . . . . . . . . . . . . . . . Piercing 8 | . . . . . . . 6 2 . . . . . . . . . . . . Entropic 21 | . . . . . . . . . . 1 . 12 . 1 . . 2 2 . 3 Sneak Attacks 2 | . . . . . . . . 1 . . . . . . . . 1 . . . Combat Hostiles . | . . . . . . . . . . . . . . . . . . . . . Follow-up Attacks . | . . . . . . . . . . . . . . . . . . . . . Damage Inflicted 36760 | . 970 971 2460 1275 2064 120 3313 573 828 . 769 2185 2885 1194 525 661 373 2151 5001 8442 Guns 6354 | . 970 665 1877 1106 1678 58 . . . . . . . . . . . . . . Cannons 23053 | . . 163 . . . 62 1545 404 828 . 769 1616 2390 1194 525 661 162 2151 2475 8108 Explosions 6601 | . . 143 583 169 386 . 1768 102 . . . 132 495 . . . . . 2510 313 Melee 715 | . . . . . . . . 67 . . . 437 . . . . 211 . . . Ramming 37 | . . . . . . . . . . . . . . . . . . . 16 21 Kinetic 19759 | . 957 665 598 1106 1678 22 1066 404 828 . 539 1471 2390 1194 . 661 162 2051 1729 2238 Thermal 7549 | . 13 163 798 169 . 62 479 . . . . 60 . . 525 . . . 146 5134 Explosive 5930 | . . 143 526 . 386 . 1768 102 . . . . 495 . . . . . 2510 . Electromagnetic 2395 | . . . 538 . . 36 . . . . . 72 . . . . . 100 600 1049 Impact . | . . . . . . . . . . . . . . . . . . . . . Slashing . | . . . . . . . . . . . . . . . . . . . . . Piercing 67 | . . . . . . . . 67 . . . . . . . . . . . . Entropic 1023 | . . . . . . . . . . . 230 582 . . . . 211 . . . Highest Corruption 13 | . . . . 3 3 7 2 2 2 2 . . . . . . . 8 2 13 Average Corruption 3 | . . . . 2 3 4 2 2 2 2 . . . . . . . 7 2 7 Corruption Purged . | . . . . . . . . . . . . . . . . . . . . . Corruption Blocked . | . . . . . . . . . . . . . . . . . . . . . Effects 190 | . . . . 8 16 75 7 7 8 . . . . . . . . 12 19 38 Message Errors 43 | . . . . 2 2 14 3 1 1 . . . . . . . . 5 7 8 Matter Fused 52 | . . . . 1 4 23 2 5 2 . . . . . . . . 1 6 8 Heat Flow Errors 31 | . . . . 3 2 15 . . 2 . . . . . . . . 5 1 3 Energy Discharges 23 | . . . . 1 2 10 1 . 1 . . . . . . . . . 3 5 Parts Rejected 1 | . . . . . . . . . . . . . . . . . . . . 1 Parts Fused 1 | . . . . . . 1 . . . . . . . . . . . . . . Data Loss (minor) 17 | . . . . . 4 6 1 1 . . . . . . . . . . . 5 Data Loss (major) 10 | . . . . . 1 3 . . 1 . . . . . . . . . 1 4 Misfires 4 | . . . . 1 1 1 . . . . . . . . . . . . 1 . Alerts 4 | . . . . . . 1 . . . . . . . . . . . 1 . 2 Weapon Failures 4 | . . . . . . 1 . . 1 . . . . . . . . . . 2 Overload Shots . | . . . . . . . . . . . . . . . . . . . . . Overflow Damage 2195 | . . . . 108 . . 79 3 . . . 159 68 . 29 . . 6 238 1505 Projectiles 1623 | . . . . . . . 5 . . . . 72 25 . 29 . . 6 1 1485 Explosions 485 | . . . . 108 . . 74 3 . . . . 43 . . . . . 237 20 Melee 87 | . . . . . . . . . . . . 87 . . . . . . . . Knockbacks 82 | . . . . . . . 6 2 4 . . 9 10 1 . 3 . 27 9 11 Impact . | . . . . . . . . . . . . . . . . . . . . . Kinetic 79 | . . . . . . . 5 2 4 . . 8 10 1 . 3 . 27 9 10 Secondary 3 | . . . . . . . 1 . . . . 1 . . . . . . . 1 Self-Inflicted Damage 221 | . . . . 85 . . 25 . . . . . . . . . . . 62 49 Shots 4 | . . . . 1 . . 1 . . . . . . . . . . . 1 1 Rammed 1 | . . . . . . . . . . . . . . . . . . . 1 . Targets Rammed 2 | . . . . . . . . . . . . . . . . . . . 1 1 Kicked 1 | . . . . . . . . . . . . . . . . . . . . 1 Crushed . | . . . . . . . . . . . . . . . . . . . . . Highest Temperature 802 | . 11 4 199 665 802 263 431 218 396 62 381 392 451 190 117 89 . 350 196 194 Average Temperature 114 | . 3 3 101 190 180 83 102 88 142 32 159 131 124 104 52 40 . 104 96 71 Received Heat Transfer 2166 | . 159 93 720 126 312 36 153 36 9 . 18 9 24 . 6 . . 45 207 213 Effects 43 | . . . . 12 22 . 2 . 6 . . 1 . . . . . . . . Shutdowns 6 | . . . . . 4 . 1 . 1 . . . . . . . . . . . Energy Bleed 7 | . . . . 1 2 . . . 3 . . 1 . . . . . . . . Interference 9 | . . . . 4 3 . . . 2 . . . . . . . . . . . Matter Decay 3 | . . . . 2 . . 1 . . . . . . . . . . . . . Short Circuit 3 | . . . . 1 2 . . . . . . . . . . . . . . . Damage (minor) 3 | . . . . 1 2 . . . . . . . . . . . . . . . Damage (major) 10 | . . . . 2 8 . . . . . . . . . . . . . . . Damage (core) 2 | . . . . 1 1 . . . . . . . . . . . . . . . Siege Activations . | . . . . . . . . . . . . . . . . . . . . . Martial Activations . | . . . . . . . . . . . . . . . . . . . . . Shielding Activations . | . . . . . . . . . . . . . . . . . . . . . Robots Disrupted . | . . . . . . . . . . . . . . . . . . . . . Combat Hostiles . | . . . . . . . . . . . . . . . . . . . . . Robots Corrupted 10 | . . . . . . . . . . . . 1 . . . . . . 4 5 Combat Hostiles 9 | . . . . . . . . . . . . 1 . . . . . . 4 4 Parts Fried 21 | . . . 2 . . . . . . . . 2 1 1 . . . . 4 11 Impact Corruptions 2 | . . . . . . . . . . . . 1 . . . . . . . 1 Robots Melted 1 | . . . . . . . 1 . . . . . . . . . . . . . Combat Hostiles 1 | . . . . . . . 1 . . . . . . . . . . . . . Parts Melted 8 | . . 1 . . . . 5 . . . . . . . . . . . 1 1 Heat Transferred 5058 | . 37 222 930 100 . 222 1592 . . . . 50 . . 444 . . . 148 1313 Parts Sabotaged . | . . . . . . . . . . . . . . . . . . . . . Parts Stolen . | . . . . . . . . . . . . . . . . . . . . . Parts Stripped . | . . . . . . . . . . . . . . . . . . . . . Power Chain Reactions 2 | . . . 1 . . . . . . . . 1 . . . . . . . . Alert | -11 -10 -10 -8 -7 -7 -7 -5 -5 -5 -5 -4 -4 -4 -4 -4 -4 -3 -3 -2 -1 ------- Run | Yrd Mat Sub Mat Fac Sto Rec Fac Upp Upp War Pro Fac Ext Cet Arc Hub Res Tes Res Acc Maximum Alert Level 3 | . 1 . . . . . 3 . . . . 2 3 3 2 2 1 1 3 3 Low Security (%) 69 | 100 97 . 100 100 100 100 5 . . . . 71 . . . 5 90 98 2 . Level 1 4 | . 2 . . . . . 4 . . . . 6 17 . 28 16 9 1 8 22 Level 2 21 | . . . . . . . 73 . . . . 22 64 87 71 78 . . 86 52 Level 3 4 | . . . . . . . 17 . . . . . 17 12 . . . . 2 24 Level 4 . | . . . . . . . . . . . . . . . . . . . . . Level 5 . | . . . . . . . . . . . . . . . . . . . . . High Security . | . . . . . . . . . . . . . . . . . . . . . Max Security . | . . . . . . . . . . . . . . . . . . . . . Peak Influence 980 | . 217 . 183 174 176 48 775 . . . . 475 980 723 453 563 324 207 715 941 Initial 535 | . . . . . 54 48 207 . . . . 156 223 535 263 138 279 39 96 427 Average 195 | . 56 . 86 43 96 3 584 . . . . 222 521 616 406 426 87 83 464 535 Influence Increases 9868 | . 400 . 784 412 530 101 1281 95 100 . 80 779 1101 358 204 545 280 452 1189 1177 Destroy 0b10 Robot/C 4860 | . 220 . 440 240 260 . 680 80 80 . 60 320 480 160 80 180 80 240 580 680 Destroy 0b10 Robot/NC 315 | . 40 . 85 5 35 . 5 5 . . . 20 35 10 . 5 15 10 . 45 Destroy Leader 932 | . 56 . 130 60 104 . 90 10 20 . 20 72 52 . . 52 24 42 90 110 Allied During Kill 811 | . . . . . . . 52 . . . . . 342 124 80 152 61 . . . Successful Hack 342 | . 22 . 16 . 80 28 12 . . . . . 19 . . . 54 18 21 72 Select Force Hacks 110 | . . . . . . 60 . . . . . . . . . 50 . . . . Disable Machine 585 | . 30 . 15 75 . . 30 . . . . 60 . 30 30 30 30 75 75 105 Destroy Structure 1008 | . 2 . 53 32 21 13 92 . . . . 82 158 34 14 76 16 22 318 75 Advance Influence 350 | . . . . . . . 200 . . . . 150 . . . . . . . . Partial Spotted 75 | . . . 15 . . . 15 . . . . 15 15 . . . . 15 . . Lose Combat Pursuer 480 | . 30 . 30 . 30 . 105 . . . . 60 . . . . . 30 105 90 Influence Decreases 8927 | . 400 . 784 291 525 208 664 452 194 185 70 332 602 655 466 409 743 351 648 948 Entered New Map 2591 | . . . . . 67 78 12 236 54 185 . 4 234 421 396 259 254 31 75 285 Time Decay 5146 | . 400 . 586 271 458 130 392 206 140 . 70 188 318 214 70 130 183 284 553 553 Lost Part 230 | . . . 60 20 . . . 10 . . . . 10 . . . . . 20 110 Lost Ally 227 | . . . . . . . 110 . . . . . 40 20 . 20 20 17 . . Purge Threat 733 | . . . 138 . . . 150 . . . . 140 . . . . 286 19 . . Squads Dispatched 48 | . 2 . 3 4 5 . 7 . . . . 2 2 . . 4 3 6 . 10 Investigation 11 | . 1 . 2 1 . . 1 . . . . . . . . 2 . 1 . 3 Extermination 12 | . . . . 3 1 . 1 . . . . 1 . . . . . 2 . 4 Reinforcement 10 | . 1 . 1 . 1 . 1 . . . . 1 1 . . 1 3 . . . Assault 6 | . . . . . . . 1 . . . . . 1 . . 1 . . . 3 Garrison 9 | . . . . . 3 . 3 . . . . . . . . . . 3 . . Intercept . | . . . . . . . . . . . . . . . . . . . . . Searches Triggered . | . . . . . . . . . . . . . . . . . . . . . Construction Impeded 1 | . . . . . . . . . . . . . 1 . . . . . . . Haulers Reinforced . | . . . . . . . . . . . . . . . . . . . . . Active Scanning Responses . | . . . . . . . . . . . . . . . . . . . . . Cargo Convoy Interrupts 1 | . . . . . . . 1 . . . . . . . . . . . . . Stealth | -11 -10 -10 -8 -7 -7 -7 -5 -5 -5 -5 -4 -4 -4 -4 -4 -4 -3 -3 -2 -1 --------- Run | Yrd Mat Sub Mat Fac Sto Rec Fac Upp Upp War Pro Fac Ext Cet Arc Hub Res Tes Res Acc Distress Signals 34 | . 4 . 4 . 2 2 2 . . . . 3 1 2 . . 4 . 7 3 Communications Jammed 20 | . . . . . . . . . . . . . . . . . . 9 . 11 Distress Signals 16 | . . . . . . . . . . . . . . . . . . 6 . 10 Times Spotted 383 | . 21 10 37 14 21 8 64 4 4 . 4 25 25 9 4 6 4 17 50 56 Peak Tracking Total 15 | . 4 2 4 4 4 1 15 3 2 . 2 10 5 5 2 3 1 5 7 8 Tactical Retreats 26 | . 2 . 1 . 2 1 4 . . . . 4 . . . . . 2 4 6 Traps | -11 -10 -10 -8 -7 -7 -7 -5 -5 -5 -5 -4 -4 -4 -4 -4 -4 -3 -3 -2 -1 ------- Run | Yrd Mat Sub Mat Fac Sto Rec Fac Upp Upp War Pro Fac Ext Cet Arc Hub Res Tes Res Acc Traps Triggered 16 | . 1 . 3 2 2 . 2 . . . . . 4 . . . 1 . . 1 Indirectly . | . . . . . . . . . . . . . . . . . . . . . Trap Hack Attempts . | . . . . . . . . . . . . . . . . . . . . . Triggered . | . . . . . . . . . . . . . . . . . . . . . Disarmed . | . . . . . . . . . . . . . . . . . . . . . Reprogrammed . | . . . . . . . . . . . . . . . . . . . . . Reused . | . . . . . . . . . . . . . . . . . . . . . Traps Extracted . | . . . . . . . . . . . . . . . . . . . . . Installed . | . . . . . . . . . . . . . . . . . . . . . Triggered . | . . . . . . . . . . . . . . . . . . . . . Machines | -11 -10 -10 -8 -7 -7 -7 -5 -5 -5 -5 -4 -4 -4 -4 -4 -4 -3 -3 -2 -1 ---------- Run | Yrd Mat Sub Mat Fac Sto Rec Fac Upp Upp War Pro Fac Ext Cet Arc Hub Res Tes Res Acc Machines Disabled 45 | . 2 1 1 5 . . 2 1 . 1 . 4 2 2 2 2 2 6 5 7 Max in Single Turn 5 | . 1 1 1 5 . . 1 1 . 1 . 2 . 1 1 1 1 1 2 1 Garrison Access 6 | . . . . 1 . . . . . . . 1 . . . . 1 . 3 . Network Hub 2 | . . . . . . . . . . . . . . . . 2 . . . . Machines Repaired . | . . . . . . . . . . . . . . . . . . . . . Machines Dismantled . | . . . . . . . . . . . . . . . . . . . . . Machines Sabotaged 1 | . . . . . . . . . . . . . . . . 1 . . . . Overloaded Fab Kills . | . . . . . . . . . . . . . . . . . . . . . Hacking | -11 -10 -10 -8 -7 -7 -7 -5 -5 -5 -5 -4 -4 -4 -4 -4 -4 -3 -3 -2 -1 --------- Run | Yrd Mat Sub Mat Fac Sto Rec Fac Upp Upp War Pro Fac Ext Cet Arc Hub Res Tes Res Acc Machines Accessed 86 | . 7 1 10 4 9 8 4 1 . 3 1 5 5 1 . 3 8 4 2 10 Terminals 58 | . 7 . 8 2 8 4 1 . . . 1 3 5 1 . 3 5 3 . 7 Fabricators 4 | . . . . . . . 1 . . . . 1 . . . . 1 . 1 . Repair Stations 3 | . . . 1 . . . 1 . . . . . . . . . 1 . . . Recycling Units 3 | . . . . . . 3 . . . . . . . . . . . . . . Scanalyzers 1 | . . . . . . . . . . . . . . . . . . . . 1 Garrison Access 11 | . . . 1 2 1 . 1 . . . . 1 . . . . 1 1 1 2 Total Hacks 191 | . 15 1 24 4 18 12 11 1 . 7 1 11 9 2 . 7 28 9 4 27 Successful 81 | . 5 1 14 2 7 8 4 1 . 7 1 8 4 . . 1 10 2 2 4 Failed 110 | . 10 . 10 2 11 4 7 . . . . 3 5 2 . 6 18 7 2 23 Catastrophic 27 | . 1 . 2 1 2 . 2 . . . . . . . . 3 4 4 . 8 Database Lockouts . | . . . . . . . . . . . . . . . . . . . . . Manual 58 | . 15 . 11 1 3 10 4 . . . . . . 1 . 7 3 1 . 2 Terminals 127 | . 15 . 16 2 16 6 4 . . . 1 8 9 2 . 7 17 6 . 18 Fabricators 12 | . . . . . . . 2 . . . . 2 . . . . 7 . 1 . Repair Stations 9 | . . . 4 . . . 3 . . . . . . . . . 2 . . . Recycling Units 4 | . . . . . . 4 . . . . . . . . . . . . . . Scanalyzers 3 | . . . . . . . . . . . . . . . . . . . . 3 Garrison Access 25 | . . . 4 2 2 . 2 . . . . 1 . . . . 2 3 3 6 Terminal Hacks 47 | . . 1 5 1 5 2 2 1 . 7 1 7 4 . . . 7 2 . 2 Record 4 | . . . 1 . . . . . . . 1 . . . . . 1 . . 1 Robot Analysis 4 | . . . 1 . 2 . . . . . . . 1 . . . . . . . Prototype ID Bank 5 | . . . . . . . . . . 5 . . . . . . . . . . Open Door 9 | . . . . . 3 . . 1 . 2 . 1 2 . . . . . . . Level Access Points 1 | . . . . . . . . . . . . 1 . . . . . . . . Branch Access Points 3 | . . . 1 . . . 1 . . . . . . . . . 1 . . . Emergency Access Points 3 | . . . . . . . . . . . . 1 . . . . 1 1 . . Alert Level 3 | . . . 1 . . . . . . . . 1 . . . . 1 . . . Unreport Threat 6 | . . . 1 . . . 1 . . . . 1 . . . . 2 1 . . Surveillance Status 1 | . . . . . . . . . . . . 1 . . . . . . . . Patrol Status 2 | . . . . . . . . . . . . 1 . . . . 1 . . . Zone Layout 3 | . . . . 1 . . . . . . . . 1 . . . . . . 1 Proto ID Catalog 1 | . . 1 . . . . . . . . . . . . . . . . . . Release Object 2 | . . . . . . 2 . . . . . . . . . . . . . . Fabricator Hacks 1 | . . . . . . . . . . . . . . . . . . . 1 . Build 1 | . . . . . . . . . . . . . . . . . . . 1 . Repair Station Hacks 8 | . . . 4 . . . 2 . . . . . . . . . 2 . . . Scan Component 4 | . . . 2 . . . 1 . . . . . . . . . 1 . . . Repair 4 | . . . 2 . . . 1 . . . . . . . . . 1 . . . Recycling Unit Hacks . | . . . . . . . . . . . . . . . . . . . . . Scanalyzer 2 | . . . . . . . . . . . . . . . . . . . . 2 Retrieve Study 2 | . . . . . . . . . . . . . . . . . . . . 2 Garrison Access Hacks 4 | . . . . 1 . . . . . . . 1 . . . . 1 . 1 . Seal Access 4 | . . . . 1 . . . . . . . 1 . . . . 1 . 1 . Unauthorized Hacks 19 | . 5 . 5 . 2 6 . . . . . . . . . 1 . . . . Terminals 17 | . 5 . 5 . 2 4 . . . . . . . . . 1 . . . . Skim 16 | . 5 . 5 . 2 4 . . . . . . . . . . . . . . Sabotage 1 | . . . . . . . . . . . . . . . . 1 . . . . Fabricators . | . . . . . . . . . . . . . . . . . . . . . Repair Stations . | . . . . . . . . . . . . . . . . . . . . . Recycling Units 2 | . . . . . . 2 . . . . . . . . . . . . . . Tunnel 2 | . . . . . . 2 . . . . . . . . . . . . . . Scanalyzers . | . . . . . . . . . . . . . . . . . . . . . Garrison Access . | . . . . . . . . . . . . . . . . . . . . . Data Cores Recovered 3 | . . . . . . . . . . . . . . . . . 1 . . 2 Used 1 | . . . . . . . . . . . . . . . . . 1 . . . Hacking Detections 59 | . 5 . 8 2 7 2 3 . . . . 2 4 2 . 2 7 4 2 9 Full Trace Events 9 | . . . 1 . . 2 1 . . . . . . . . 1 . 1 . 3 Feedback Events 1 | . . . . . . . . . . . . . . . . . . . . 1 Corruption 1 | . . . . . . . . . . . . . . . . . . . . 1 Feedback Blocked . | . . . . . . . . . . . . . . . . . . . . . Robot Schematics Acquired . | . . . . . . . . . . . . . . . . . . . . . Robots Built . | . . . . . . . . . . . . . . . . . . . . . Authchips . | . . . . . . . . . . . . . . . . . . . . . Time . | . . . . . . . . . . . . . . . . . . . . . Total Robot Build Rating . | . . . . . . . . . . . . . . . . . . . . . Part Schematics Acquired . | . . . . . . . . . . . . . . . . . . . . . Parts Built 2 | . . . . . . . . . . . . . . . . . . . 2 . Authchips . | . . . . . . . . . . . . . . . . . . . . . Time 46 | . . . . . . . . . . . . . . . . . . . 46 . Total Part Build Rating 18 | . . . . . . . . . . . . . . . . . . . 18 . Part Studies Acquired 2 | . . . . . . . . . . . . . . . . . . . . 2 Parts Repaired 4 | . . . 2 . . . 1 . . . . . . . . . 1 . . . Time 171 | . . . 91 . . . 44 . . . . . . . . . 36 . . . Parts Recycled . | . . . . . . . . . . . . . . . . . . . . . Recycled Matter . | . . . . . . . . . . . . . . . . . . . . . Retrieved Matter . | . . . . . . . . . . . . . . . . . . . . . Retrieved Components . | . . . . . . . . . . . . . . . . . . . . . Parts Scanalyzed . | . . . . . . . . . . . . . . . . . . . . . Part Schematics Acquired . | . . . . . . . . . . . . . . . . . . . . . Parts Damaged . | . . . . . . . . . . . . . . . . . . . . . Bothacking | -11 -10 -10 -8 -7 -7 -7 -5 -5 -5 -5 -4 -4 -4 -4 -4 -4 -3 -3 -2 -1 ------------ Run | Yrd Mat Sub Mat Fac Sto Rec Fac Upp Upp War Pro Fac Ext Cet Arc Hub Res Tes Res Acc Used RIF Installer . | . . . . . . . . . . . . . . . . . . . . . Robots Hacked . | . . . . . . . . . . . . . . . . . . . . . Non-combat . | . . . . . . . . . . . . . . . . . . . . . Combat . | . . . . . . . . . . . . . . . . . . . . . Robot Hacks Applied . | . . . . . . . . . . . . . . . . . . . . . Relay Couplers Released 2 | . . . . . . . . . . . . . . . . . . . 2 . Machine Destruction 2 | . . . . . . . . . . . . . . . . . . . 2 . Fabnet Peak Effective % . | . . . . . . . . . . . . . . . . . . . . . Robots Rewired 16 | . . . . . . 9 . . . . . . 7 . . . . . . . Allies Hacked 1 | . . . . . . . . . . . . . 1 . . . . . . . Hacks Repelled . | . . . . . . . . . . . . . . . . . . . . . Allies | -11 -10 -10 -8 -7 -7 -7 -5 -5 -5 -5 -4 -4 -4 -4 -4 -4 -3 -3 -2 -1 -------- Run | Yrd Mat Sub Mat Fac Sto Rec Fac Upp Upp War Pro Fac Ext Cet Arc Hub Res Tes Res Acc Total Allies 23 | . . . . . . 9 . . . . . . 9 5 . . . . . . Largest Group 9 | . . . . . . 9 9 . . . . . 9 8 8 7 4 1 . . Highest-Rated Group 736 | . . . . . . 172 172 . . . . . 501 736 736 577 339 51 . . Highest-Rated Ally 159 | . . . . . . 40 40 . . . . . 159 159 159 96 96 51 . . Total Orders 2 | . . . . . . 2 . . . . . . . . . . . . . . STAY 1 | . . . . . . 1 . . . . . . . . . . . . . . FOLLOW 1 | . . . . . . 1 . . . . . . . . . . . . . . Ally Attacks 264 | . . . . . . 49 14 . . . . . 97 22 15 45 19 3 . . Total Damage 7004 | . . . . . . 736 317 . . . . . 2795 617 491 1356 625 67 . . Kills 40 | . . . . . . 1 4 . . . . . 16 4 2 9 3 1 . . Allies Corrupted 1 | . . . . . . . . . . . . . . . . . 1 . . . Allies Melted 2 | . . . . . . . . . . . . . . . . . . . 2 . Intel | -11 -10 -10 -8 -7 -7 -7 -5 -5 -5 -5 -4 -4 -4 -4 -4 -4 -3 -3 -2 -1 ------- Run | Yrd Mat Sub Mat Fac Sto Rec Fac Upp Upp War Pro Fac Ext Cet Arc Hub Res Tes Res Acc Active Infowar (turns) 10881 | . 2300 2620 397 . . . 118 362 81 . . 30 535 . . . 567 766 1615 1490 Optics 2732 | . 2300 432 . . . . . . . . . . . . . . . . . . Sensors 1567 | . . . . . . . . . . . . . . . . . . . 389 1178 IFF 374 | . . . . . . . 118 256 . . . . . . . . . . . . Structural 2585 | . . 2188 397 . . . . . . . . . . . . . . . . . Jamming 5190 | . . . . . . . . 106 81 . . 30 535 . . . 567 766 1615 1490 Robot Analysis Total 4 | . . . 1 . 2 . . . . . . . 1 . . . . . . . Derelict Logs Recovered 6 | . . 1 . . . . . 3 1 . 1 . . . . . . . . . Drone Launches . | . . . . . . . . . . . . . . . . . . . . . Drone Recoveries . | . . . . . . . . . . . . . . . . . . . . . Exploration | -11 -10 -10 -8 -7 -7 -7 -5 -5 -5 -5 -4 -4 -4 -4 -4 -4 -3 -3 -2 -1 ------------- Run | Yrd Mat Sub Mat Fac Sto Rec Fac Upp Upp War Pro Fac Ext Cet Arc Hub Res Tes Res Acc Turns Passed 23214 | 78 2476 2620 2726 1645 1143 3643 929 427 289 322 354 411 717 440 157 274 567 766 1615 1615 Spaces Moved 12807 | 45 631 766 727 773 379 1213 930 625 403 617 418 696 558 194 112 217 448 583 1440 1032 Core 2 | 2 . . . . . . . . . . . . . . . . . . . . Treads 3422 | 43 631 766 727 236 328 185 . . . . . . . . . 61 . . 331 114 Legs 3130 | . . . . . . 358 369 . . . . . . . . 103 448 19 915 918 Wheels 588 | . . . . 537 51 . . . . . . . . . . . . . . . Hover 3013 | . . . . . . 670 561 625 403 617 95 19 23 . . . . . . . Flight 2652 | . . . . . . . . . . . 323 677 535 194 112 53 . 564 194 . Fastest Speed 37 | 50 160 320 236 145 160 83 47 47 47 47 37 37 71 71 71 71 78 103 82 87 Average Speed 136 | 155 306 320 243 185 235 206 69 47 47 47 39 42 73 71 71 74 102 103 97 120 Slowest Speed 330 | 160 320 320 320 317 330 278 158 47 47 47 47 137 137 71 71 78 130 103 136 177 Overloaded Moves . | . . . . . . . . . . . . . . . . . . . . . Propulsion Burnouts . | . . . . . . . . . . . . . . . . . . . . . Robots Hopped 16 | . . . . . . . . . . . . 3 12 . . . . 1 . . Potential Cave-ins 4 | . . . . . . . . . 2 . . . . . . . . . 2 . Cave-ins Triggered . | . . . . . . . . . . . . . . . . . . . . . Exploration Rate (%) 51 | 4 97 47 69 18 75 99 28 71 54 92 63 20 67 69 75 17 12 38 51 25 Regions Visited 20 Branch Regions 12 Pre-discovered Areas 9 | . 1 2 2 . 1 2 . 1 . . . . . . . . . . . . Known Exits Taken 7 | . 1 . 1 . . . 1 . . . . 1 . . . 1 1 . 1 . Unknown Exits Taken 13 | 1 . 1 . 1 1 1 . 1 1 1 1 . 1 1 1 . . 1 . . Scrap Searched 13 | . . 5 . . . . . 4 3 . 1 . . . . . . . . . Spaces Dug 33 | . . . . . . 12 5 . 1 . . 5 . . . . . 4 . 6 Terrain Destroyed 596 | . . 14 59 56 20 12 45 12 4 . 7 49 102 9 5 25 6 10 135 26 Melee 7 | . . . . . . . 5 . . . . . . . . . . 2 . . Projectile 218 | . . 1 . . . . . 3 2 . 6 46 54 9 5 25 6 3 32 26 AOE 362 | . . 13 59 56 20 12 40 8 . . . 3 48 . . . . . 103 . Terrain Rammed . | . . . . . . . . . . . . . . . . . . . . . Walls Destroyed . | . . . . . . . . . . . . . . . . . . . . . Machines Disabled . | . . . . . . . . . . . . . . . . . . . . . Actions | -11 -10 -10 -8 -7 -7 -7 -5 -5 -5 -5 -4 -4 -4 -4 -4 -4 -3 -3 -2 -1 --------- Run | Yrd Mat Sub Mat Fac Sto Rec Fac Upp Upp War Pro Fac Ext Cet Arc Hub Res Tes Res Acc Total 17789 | 50 1083 855 1490 975 590 2349 1173 746 493 647 601 784 810 484 181 318 551 715 1585 1309 Wait 3460 | . 365 14 541 112 97 953 137 101 69 13 167 39 162 261 60 74 85 74 34 102 Move 12760 | 44 630 765 726 772 378 1212 929 624 402 616 417 689 538 193 111 216 447 580 1440 1031 Hop 11 | . . . . . . . . . . . . 3 7 . . . . 1 . . Pick Up 156 | . 27 7 30 16 10 10 12 1 1 2 1 3 3 3 . 2 3 3 7 15 Fast Attach 89 | 6 3 1 18 4 5 5 10 1 . 6 . 1 4 1 . 4 3 8 1 8 Attach 52 | . . 4 10 4 5 1 4 1 . 1 1 2 1 . . . 2 1 7 8 Detach 14 | . 2 . 3 1 1 1 . . . . . . 1 . . 1 . . 3 1 Swap 70 | . 2 9 8 5 9 3 3 7 3 . . 4 6 . . . . 1 8 2 Drop 198 | . 6 6 42 22 13 30 18 2 . 7 . 4 4 5 . 4 3 10 6 16 Fire 781 | . 48 49 112 39 56 17 54 7 18 1 15 27 49 20 10 17 6 35 79 122 Melee 29 | . . . . . . . 6 2 . 1 . 12 . 1 . . 2 2 . 3 Ram . | . . . . . . . . . . . . . . . . . . . . . Kick 1 | . . . . . . . . . . . . . . . . . . . . 1 Crush . | . . . . . . . . . . . . . . . . . . . . . Escape Stasis 20 | . . . . . 16 . . . . . . . 4 . . . . . . . Rewire 148 | . . . . . . 117 . . . . . . 31 . . . . . . . Trap . | . . . . . . . . . . . . . . . . . . . . . Miscellaneous . | . . . . . . . . . . . . . . . . . . . . . Route ------- -11/Scrapyard -10/Materials (discovered 6 exits: [*Mat x3] / [*Min x2] / *Sub) -10/Subcaves -8/Materials (discovered 3 exits: *Fac x3) -7/Factory (discovered 4 exits: *Fac x3 / *Sto) -7/Storage (discovered 2 exits: *Fac / *Rec) -7/Recycling -5/Factory (discovered 3 exits: *Fac / *Upp x2) -5/Upper Caves -5/Upper Caves -5/Warlord -4/Proximity Caves -4/Factory (discovered 6 exits: Res x4 / *Ext / Arm) -4/Extension (discovered 2 exits: *Res / *Cet) -4/Cetus (discovered 2 exits: *Res / [*Arc]) -4/Archives (discovered 2 exits: *Res / *Hub) -4/Hub_04(d) -3/Research (discovered 2 exits: *Tes x2) -3/Testing -2/Research (discovered 2 exits: *Acc x2) -1/Access To Epsilon Eridani History --------- Turn | Location | Event 31 | -11/Scrapyard | Discovered new exit (range 15) 79 | -11/Scrapyard | Entered Materials 334 | -10/Materials | Build established: Mutant 635 | -10/Materials | Discovered new exit (range 17) 1266 | -10/Materials | Discovered new exit (range 9) 1269 | -10/Materials | Discovered new exit (range 7) 1458 | -10/Materials | Discovered new exit (range 15) 1854 | -10/Materials | Discovered new exit (range 10) 2122 | -10/Materials | Learned location of Mines (-8) 2164 | -10/Materials | Learned 2 Storage zone layouts 2195 | -10/Materials | Learned Storage trap positions 2214 | -10/Materials | Loaded intel: 11 trap records 2273 | -10/Materials | Identified exit to Subcaves 2273 | -10/Materials | Learned location of 2 exits from Materials 2555 | -10/Materials | Entered Subcaves 2773 | -10/Subcaves | Ambushed by Subdwellers from Twisted Machinery 2775 | -10/Subcaves | Core integrity fell below 50% 2909 | -10/Subcaves | Disturbed a concealed Subdweller 3035 | -10/Subcaves | Learned location of Zion (-7) 3035 | -10/Subcaves | Met a Zionite searching for "candidates" 3179 | -10/Subcaves | Core integrity fell below 20% 3211 | -10/Subcaves | Lost 3 parts (1p2n) 3479 | -10/Subcaves | Build established: Scavenger-Mutant 4491 | -10/Subcaves | Visited 4L-MR0's lab 4528 | -10/Subcaves | Found Power Bank 4880 | -10/Subcaves | Build established: Mutant 5152 | -10/Subcaves | Shifting Twisted Machinery released Battle Rifle 5153 | -10/Subcaves | Discovered new exit (range 3) 5175 | -10/Subcaves | Entered Materials 5175 | -8/Materials | Evolved 4 slots: Propulsion x2, Utility x2 5176 | -8/Materials | Identified exit to Factory 7069 | -8/Materials | Repaired Adv. Treads 7124 | -8/Materials | Repaired Corrupted Carbon-fiber Leg 7193 | -8/Materials | Discovered exit to Factory (range 7) 7292 | -8/Materials | Learned Factory stockpile data 7362 | -8/Materials | Learned location of 1 exit from Extension 7508 | -8/Materials | Learned Storage interactive machine intel 7582 | -8/Materials | Learned Factory security intel 7901 | -8/Materials | Entered Factory 7901 | -7/Factory | Evolved 2 slots: Utility x1, Weapon x1 7902 | -7/Factory | Identified exit to Factory 8188 | -7/Factory | Build established: Gunner 8310 | -7/Factory | Discovered exit to Factory (range 5) 8551 | -7/Factory | Discovered new exit (range 16) 9332 | -7/Factory | Build established: Mutant 9546 | -7/Factory | Entered Storage 9548 | -7/Storage | Loaded intel: 21 trap records 9549 | -7/Storage | Loaded intel: 20 interactive machine locations 9842 | -7/Storage | Build established: Tank 10195 | -7/Storage | Garrison activated, responded to threat 10217 | -7/Storage | Core integrity fell below 50% 10474 | -7/Storage | Discovered exit to Factory (range 15) 10603 | -7/Storage | Learned location of Armory (-4) 10616 | -7/Storage | Met 01-MTF 10677 | -7/Storage | Discovered new exit (range 4) 10689 | -7/Storage | Entered Recycling 10689 | -7/Recycling | Accompanied by 1 ally (01-MTF) 10854 | -7/Recycling | Build established: Scavenger-Tank 11126 | -7/Recycling | Entered Scraplab 11171 | -7/Recycling | Found Prototype Device 11171 | -7/Recycling | Identified Scrap Engine 11482 | -7/Recycling | Build established: Mutant 11928 | -7/Recycling | Build established: Construct 12520 | -7/Recycling | Discovered new exit (range 8) 13049 | -7/Recycling | Build established: Commander-Construct 13210 | -7/Recycling | Allies destroyed 01-MTF 14332 | -7/Recycling | Entered Factory 14332 | -5/Factory | Accompanied by 9 allies 14332 | -5/Factory | Evolved 4 slots: Power x1, Propulsion x1, Utility x2 14402 | -5/Factory | Garrison activated, responded to threat 14450 | -5/Factory | Lost 7 allies 14461 | -5/Factory | Destroyed 15 combat bots 14710 | -5/Factory | Destroyed 8 combat bots 14716 | -5/Factory | Build established: Construct 14884 | -5/Factory | Repaired Hrd. Heavy Armor Plating 14932 | -5/Factory | First assault squad dispatched 15004 | -5/Factory | Discovered new exit (range 12) 15061 | -5/Factory | Identified exit to Upper Caves 15197 | -5/Factory | Cargo convoy interrupted 15261 | -5/Factory | Entered Upper Caves 15331 | -5/Upper Caves | Encountered a Warlord checkpoint 15339 | -5/Upper Caves | Found DCF Scrap (13 items) 15352 | -5/Upper Caves | Learned Factory garrison access intel 15425 | -5/Upper Caves | Lost 3 allies 15543 | -5/Upper Caves | Learned location of 1 exit from Factory 15555 | -5/Upper Caves | Attacked by a delusional Derelict stockpiling parts 15640 | -5/Upper Caves | Discovered new exit (range 5) 15688 | -5/Upper Caves | Entered another Upper Caves area 15759 | -5/Upper Caves | Spotted B-75 Beast 15792 | -5/Upper Caves | Destroyed B-75 Beast 15843 | -5/Upper Caves | Attracted the attention of an 0b10 checkpoint 15889 | -5/Upper Caves | Learned Factory emergency access door positions 15917 | -5/Upper Caves | Discovered new exit (range 15) 15977 | -5/Upper Caves | Entered Warlord 15993 | -5/Warlord | System corruption cleaned by Quarantine Array 16062 | -5/Warlord | Met Warlord 16086 | -5/Warlord | Warlord's base attacked by MAIN.C 16123 | -5/Warlord | Found Prototype Piercing Weapon 16123 | -5/Warlord | Identified Vortex Lance 16147 | -5/Warlord | Found Prototype Processor 16147 | -5/Warlord | Identified Exp. Core Analyzer 16153 | -5/Warlord | Found Prototype Device 16153 | -5/Warlord | Identified Exp. Phase Shifter 16218 | -5/Warlord | Found Prototype Hackware 16286 | -5/Warlord | Opened side exit 16296 | -5/Warlord | Discovered new exit (range 9) 16299 | -5/Warlord | Entered Proximity Caves 16318 | -4/Proximity Caves | Learned Research terminal intel 16328 | -4/Proximity Caves | Spotted B-86 Titan 16360 | -4/Proximity Caves | Destroyed B-86 Titan 16564 | -4/Proximity Caves | Attracted the attention of an 0b10 checkpoint 16638 | -4/Proximity Caves | Spotter reported a threat 16643 | -4/Proximity Caves | Discovered new exit (range 9) 16653 | -4/Proximity Caves | Entered Factory 16653 | -4/Factory | Evolved 2 slots: Utility x2 16654 | -4/Factory | Identified exit to Extension 16655 | -4/Factory | Identified exit to Armory 16657 | -4/Factory | Loaded intel: 4 garrison access locations 16658 | -4/Factory | Identified System Mapper 16884 | -4/Factory | Identified exit to Research 16931 | -4/Factory | Spotted B-86 Titan 16959 | -4/Factory | Build established: Hacker-Construct 16994 | -4/Factory | Destroyed 7 combat bots 17064 | -4/Factory | Entered Extension 17110 | -4/Extension | Rescued a captive Derelict 17157 | -4/Extension | Rescued A7 17292 | -4/Extension | Attached Power Bank, gained temporary slots: Power x3 17522 | -4/Extension | Build established: Commander-Construct 17564 | -4/Extension | First assault squad dispatched 17574 | -4/Extension | Spotted B-86 Titan 17590 | -4/Extension | Allies destroyed B-86 Titan 17604 | -4/Extension | Spotted B-86 Titan 17610 | -4/Extension | Allies destroyed B-86 Titan 17739 | -4/Extension | Discovered new exit (range 16) 17781 | -4/Extension | Entered Cetus 17781 | -4/Cetus | Accompanied by 5 allies (A7) 17786 | -4/Cetus | Acquired a Cetus Manufacturing Module code from A7 17807 | -4/Cetus | Spotted Cetus Guard 17807 | -4/Cetus | Spotted Cetus Guard 17808 | -4/Cetus | Destroyed Cetus Guard 17808 | -4/Cetus | Spotted Cetus Guard 17810 | -4/Cetus | Allies destroyed Cetus Guard 17811 | -4/Cetus | Spotted Cetus Guard 17818 | -4/Cetus | Destroyed Cetus Guard 17822 | -4/Cetus | Destroyed Cetus Guard 17874 | -4/Cetus | Started Cetus Manufacturing Module 17899 | -4/Cetus | Manufactured an Enhanced Grunt 17924 | -4/Cetus | Manufactured an Enhanced Grunt 17939 | -4/Cetus | Build established: Hacker-Construct 17949 | -4/Cetus | Manufactured an Enhanced Grunt 17974 | -4/Cetus | Manufactured an Enhanced Grunt 17999 | -4/Cetus | Manufactured an Enhanced Grunt 18033 | -4/Cetus | Escorted A7 to Cetus Mainframe 18047 | -4/Cetus | Discovered new exit (range 16) 18075 | -4/Cetus | Spotted Cetus Guard 18075 | -4/Cetus | Spotted Cetus Guard 18077 | -4/Cetus | Spotted Cetus Guard 18079 | -4/Cetus | Allies destroyed Cetus Guard 18081 | -4/Cetus | Destroyed Cetus Guard 18082 | -4/Cetus | Spotted Cetus Guard 18082 | -4/Cetus | Allies destroyed Cetus Guard 18086 | -4/Cetus | Destroyed Cetus Guard 18091 | -4/Cetus | Discovered exit to Research (range 15) 18095 | -4/Cetus | Met Revision 17 18221 | -4/Cetus | Entered Archives 18221 | -4/Archives | Accompanied by 8 allies (A7) 18226 | -4/Archives | Received a hacking code to weaken MAIN.C 18243 | -4/Archives | Build established: Commander-Construct 18255 | -4/Archives | Discovered new exit (range 15) 18283 | -4/Archives | Discovered exit to Research (range 16) 18378 | -4/Archives | Entered Hub_04(d) 18378 | -4/Hub_04(d) | Accompanied by 7 allies 18378 | -4/Hub_04(d) | Discovered exit to Research (range 10) 18397 | -4/Hub_04(d) | Found Prototype Device 18397 | -4/Hub_04(d) | Identified Exp. Thermal Shield 18434 | -4/Hub_04(d) | Network Hub disabled 18434 | -4/Hub_04(d) | Network Hub disabled 18628 | -4/Hub_04(d) | First assault squad dispatched 18652 | -4/Hub_04(d) | Entered Research 18652 | -3/Research | Accompanied by 4 allies 18652 | -3/Research | Evolved 2 slots: Utility x2 18653 | -3/Research | Loaded intel: 22 terminal locations 18719 | -3/Research | Identified exit to Testing 18821 | -3/Research | Repaired Centrium Medium Armor Plating 18831 | -3/Research | Found Fusion Bomb Launcher 18852 | -3/Research | Revision forces began assault on 0b10 18910 | -3/Research | Met up with Revision 17++ 18965 | -3/Research | Build established: Hacker-Construct 19219 | -3/Research | Entered Testing 19219 | -3/Testing | Accompanied by 1 ally 19416 | -3/Testing | Discovered new exit (range 10) 19985 | -3/Testing | Entered Research 19985 | -2/Research | Warlord forces began assault on 0b10 19985 | -2/Research | Evolved 2 slots: Utility x1, Weapon x1 20049 | -2/Research | Fabricated Rnf. Quantum Reactor (x2) 20095 | -2/Research | Research machine network offline 20340 | -2/Research | Spotted Striker 20365 | -2/Research | Destroyed Striker 20521 | -2/Research | Borebot progress halted 20522 | -2/Research | Borebot progress halted 20529 | -2/Research | Spotted Striker 20599 | -2/Research | Spotted Striker 20757 | -2/Research | Borebot progress halted 20938 | -2/Research | Warlord destroyed during the assault 21056 | -2/Research | Spotted Striker 21065 | -2/Research | Destroyed Striker 21248 | -2/Research | Discovered new exit (range 11) 21260 | -2/Research | Identified exit to Access 21437 | -2/Research | Spotted Executioner 21441 | -2/Research | Destroyed Executioner 21486 | -2/Research | Spotted Executioner 21487 | -2/Research | Destroyed Executioner 21489 | -2/Research | Spotted Striker 21492 | -2/Research | Spotted Striker 21499 | -2/Research | Destroyed Striker 21499 | -2/Research | Destroyed Striker 21534 | -2/Research | Destroyed 10 combat bots 21582 | -2/Research | Spotted Executioner 21589 | -2/Research | Spotted Executioner 21596 | -2/Research | Discovered exit to Access (range 5) 21597 | -2/Research | Spotted Executioner 21600 | -2/Research | Entered Access 21600 | -1/Access | Evolved 2 slots: Propulsion x1, Utility x1 21622 | -1/Access | Lost 5 allies 22167 | -1/Access | Build established: Construct 22531 | -1/Access | Spotted B-99 Colossus 22722 | -1/Access | System corruption reached 10% 22726 | -1/Access | Lost 3 parts (2u1w) 22850 | -1/Access | First assault squad dispatched 23211 | -1/Access | Discovered new exit (range 3) 23213 | -1/Access | Identified exit to Surface 23215 | *** | Escaped! Last Messages --------------- A001. Dispatching Investigation squad. 23180_ K-01 Serf cleans the Terminal. 23181_ Scrap Engine modifies Biometal Exoskeleton: Support -23. 23186_ K-01 Serf cleans the Terminal. 23194_ System corrupted: Energy discharge (-58). 23202_ Sealed Barrier breached. 23204_ C-45 Heavy ARC bursts open, deploying its payload. 23204_ G-73 Enforcer unfolds itself. 23204_ M-36 Artificer unfolds itself. 23209_ Main Access Shell breached. 23211_ EXIT=FOUND 23213_ EXIT=IDENTIFIED: SURFACE 23214_ Scrap Engine modifies Rapid KE Penetrator Construct/C: -Critical, Range +4, Min Damage -13, Salvage +3 Renamed Cycling Thermal Mass Construct/C. Map ----- +----------------------------------------------------+ | ????# #??????????# " # ?????????? | | ????# #??????????# #???????????? | | ????##############??????????# #???????????? | | ?????????????####################+######+#+??????? | | ?????????????# # #????? | | ?????????????# = # +????? | | ?????????????# # %############# #????? | | ?????????????# + #??????????????????? | | ?????????????# # #??????????????????? | | ?????????????# """T""" #! #??????????????????? | | ?????????????###############[ ##?????????????????? | | ??????????????????????????#%* ##########????????? | | ??????????????????????????#[ C #????????? | | ?????????????????????????## #????????? | | ?????????????????????????#" ####### #????????? | | ?????????????????????????##"####?????# #????????? | | ??????????????????????????###????????# #????????? | | ?????????????????????????????????????# #????????? | | ?????????????????????????????????????# #????????? | | ?????????????????????????????????????# #????????? | | ??????????????????????????####"####### #????????? | | ??????????????????????????? " " #????????? | | ??????????????BB??????????? " "%" #????????? | | ??????????????BB??????"""""" " " #????????? | | ??????????????????????" " " #????????? | | ??????????????????????" "@ " " #????????? | | ??????????????????????" "" " " #????????? | | ??????????????????????" " #????????? | | ??????????????BB??????"""""" m #????????? | | ??????????????BB????" """" """ #????????? | | ????????????????????" """"T""" #????????? | | ????????????????????##########"####### #????????? | | ?????????????????????????????????????? #????????? | | ?????????????????????????????????????? k#????????? | | ?????????????????????????????????????? #????????? | | ?????????????????????????????????????? #????????? | | ?????????????????????????????????????? #????????? | | ?????????????????????????????????????????????????? | | ?????????????????????????????????????????????????? | | ?????????????????????????????????????????????????? | | ?????????????????????????????????????????????????? | | ?????????????????????????????????????????????????? | | ??????????????????????????????????????H??????????? | | ?????????????????????????????????????????????????? | | ?????????????????????????????????????????????????? | | ?????????????????????????????????????????????????? | | ?????????????????????????????????????????????????? | | ?????????????????????????????????????????????????? | | ?????????????????????????????????????????????????? | | ?????????????????????????????????????????????????? | +----------------------------------------------------+ Best States ------------- Heat Dissipation 87 Coolant Potential 120 Energy Generation 57 Energy Capacity 1099 Matter Stores 300 Matter Capacity 300 Sight Range 18 Robot Scan Range 18 Terrain Scan Density 10 Jamming Range 14 Base Temperature (-) 200 Armor Coverage 825 Resistance: KI 30 Resistance: EM 15 Weapon Cycling 30 Phase Shifting 20 Evasion (%) 82 Targeting Accuracy 6 Target Analysis 8 Core Analysis 8 Recoil Reduction 8 Particle Charging 25 Offensive Hacking 20 Defensive Hacking 12 Item Schematics ----------------- None Robot Schematics ------------------ None Fabricated ------------ Rnf. Quantum Reactor | x2 | -2/Research | Preloaded Repaired ---------- Adv. Treads | 37% | -8/Materials Carbon-fiber Leg | 75% | -8/Materials | Corrupted Hrd. Heavy Armor Plating | 70% | -5/Factory Centrium Medium Armor Plating | 55% | -3/Research Studied --------- Com. HERF Cannon | -1/Access | Hacked Adv. Datajack | -1/Access | Hacked Alien Tech Used ----------------- None Achievements -------------- Irresistible Scrap Challenges ------------ None Game ------ Seed FocalLongswordDesublimator Manual? 0 Play Time 02:54:35 Cumulative 526.2 hours Start 2025.11.09 @ 15:39:23 End 2025.11.09 @ 21:28:11 Sessions 1 Manual Loads 0 Difficulty Rogue Special Mode None Game No. 858 Rogue 703 Adventurer 148 Explorer 7 Win Type 0 Total 26 Types 20/1/4/1/0/0/0/0/0/0 Lore% 77 Gallery% 79 Achievement% 64 Wizard Run 0 Options --------- Layout 1 ASCII 0 Keyboard 0 Movement Numpad Keybinds 0 Fullscreen 2 Font 24/Smallcaps Map View 50x40 Zoom Use 0% Tactical HUD 1 Map Filters NONE Filters NONE Steam 1 RUN: 66e2b6c1-785b-4296-bdac-38d3c2913d30